[Event "Spring Tour GM Mix B 2022"]
[Site "Cattolica"]
[Date "2022.03.12"]
[Round "4.7"]
[White "Kanyamarala, Tarun"]
[Black "Marzaduri, Riccardo"]
[Result "1-0"]
[ECO "A85"]
[WhiteElo "2343"]
[BlackElo "2180"]
[Annotator "RC"]
[PlyCount "67"]
[EventDate "2022.03.10"]
[EventType "swiss"]
[EventCountry "ITA"]
[SourceTitle "playchess.com"]
[Source "ChessBase"]
[SourceQuality "1"]
[TimeControl "5400+30"]

1. d4 {[%emt 0:00:04]} d5 {[%emt 0:02:14]} 2. c4 {[%emt 0:00:10]} c6 {[%emt 0:00:05]} 3. Nf3 {[%emt 0:00:06]} e6 {[%emt 0:00:06]} 4. Qc2 {[%emt 0:01:48]} f5 {[%emt 0:01:05]} 5. Nc3 {[%emt 0:11:18]} Nf6 {[%emt 0:03:45]} 6. Bg5 {[%emt 0:07:24]} Be7 {[%emt 0:02:45]} 7. e3 {[%emt 0:00:26]} O-O {[%emt 0:07:02]} 8. h3 {[%emt 0:05:25]} Ne4 {[%emt 0:04:11]} 9. Bf4 {[%emt 0:08:56]} Bb4 {[%emt 0:10:34]} 10. Rc1 {[%emt 0:11:57]} Qa5 {[%emt 0:03:02]} 11. Nd2 {[%emt 0:00:37]} Nd7 {[%emt 0:03:28]} 12. Ndxe4 {[%emt 0:09:19]} fxe4 {[%emt 0:00:44]} 13. a3 {[%emt 0:00:52]} Be7 {[%emt 0:02:42]} 14. Be2 {[%emt 0:02:56]} e5 {[%emt 0:16:11]} 15. Bxe5 {[%emt 0:15:12]} Nxe5 {[%emt 0:00:47]} 16. dxe5 {[%emt 0:00:06]} Be6 {[%emt 0:02:58]} 17. O-O {[%emt 0:00:12]} Qb6 {[%emt 0:14:41]} 18. cxd5 {[%emt 0:07:42]} cxd5 {[%emt 0:02:25]} 19. Bg4 {[%emt 0:05:05]} Bf7 {[%emt 0:06:12]} 20. e6 {[%emt 0:05:04]} Bxe6 {[%emt 0:00:28]} 21. Bxe6+ {[%emt 0:00:31]} Qxe6 {[%emt 0:00:02]} 22. Qb3 {[%emt 0:00:11]} Rf5 {[%emt 0:02:41]} 23. Rcd1 {[%emt 0:03:21]} Rd8 {[%emt 0:00:25]} 24. Rd4 {[%emt 0:00:10]} Kf7 {[%emt 0:01:20]} 25. Rfd1 {[%emt 0:01:06]} Bf6 {[%emt 0:02:20]} 26. Rxd5 {[%emt 0:00:28]} Rfxd5 {[%emt 0:04:44]} 27. Rxd5 {[%emt 0:01:13]} Rxd5 {[%emt 0:01:52]} 28. Nxd5 {[%emt 0:00:07]} b6 {[%emt 0:01:03]} 29. Qc4 {[%emt 0:01:07]} Bxb2 {[%emt 0:01:35]} 30. Qc7+ {[%emt 0:00:19]} Kf8 {[%emt 0:00:08]} 31. Qb8+ {[%emt 0:00:20]} Qe8 {[%emt 0:01:42]} 32. Qxa7 {[%emt 0:00:26]} Qc6 {[%emt 0:01:47]} 33. Qe7+ {[%emt 0:00:33]} Kg8 {[%emt 0:00:02]} 34. Qxe4 {[%emt 0:00:07]} 1-0

[Event "Spring Tour GM Mix B 2022"]
[Site "Cattolica"]
[Date "2022.03.12"]
[Round "5.7"]
[White "Marzaduri, Riccardo"]
[Black "Begmuratov, Khumoyun"]
[Result "0-1"]
[ECO "D00"]
[WhiteElo "2180"]
[BlackElo "2358"]
[Annotator "RC"]
[PlyCount "70"]
[EventDate "2022.03.10"]
[EventType "swiss"]
[EventCountry "ITA"]
[SourceTitle "playchess.com"]
[Source "ChessBase"]
[SourceQuality "1"]
[TimeControl "5400+30"]

1. d4 {[%emt 0:05:12]} Nf6 {[%emt 0:00:13]} 2. Nc3 {[%emt 0:00:10]} d5 {[%emt 0:00:06]} 3. Bf4 {[%emt 0:00:07]} a6 {[%emt 0:00:18]} 4. e3 {[%emt 0:00:08]} e6 {[%emt 0:00:23]} 5. g4 {[%emt 0:00:13]} Bb4 {[%emt 0:00:40]} 6. Nge2 {[%emt 0:00:23]} c5 {[%emt 0:00:52]} 7. a3 {[%emt 0:02:09]} cxd4 {[%emt 0:13:59]} 8. axb4 {[%emt 0:02:45]} dxc3 {[%emt 0:00:10]} 9. Nxc3 {[%emt 0:00:14]} O-O {[%emt 0:08:39]} 10. b5 {[%emt 0:16:45]} Qe7 {[%emt 0:10:34]} 11. g5 {[%emt 0:05:17]} Nfd7 {[%emt 0:02:26]} 12. Rg1 {[%emt 0:05:36]} Re8 {[%emt 0:13:18]} 13. Ra4 {[%emt 0:06:11]} Nb6 {[%emt 0:04:58]} 14. Ra3 {[%emt 0:01:22]} e5 {[%emt 0:10:07]} 15. Bg3 {[%emt 0:00:20]} d4 {[%emt 0:06:37]} 16. Ne4 {[%emt 0:02:35]} Qb4+ {[%emt 0:03:58]} 17. c3 {[%emt 0:02:00]} dxc3 {[%emt 0:00:59]} 18. Nxc3 {[%emt 0:00:21]} Bf5 {[%emt 0:01:54]} 19. Rb3 {[%emt 0:03:57]} Qc5 {[%emt 0:00:53]} 20. bxa6 {[%emt 0:02:07]} bxa6 {[%emt 0:00:18]} 21. Bxe5 {[%emt 0:14:58]} Be6 {[%emt 0:00:59]} 22. Rxb6 {[%emt 0:00:12]} Qxb6 {[%emt 0:01:51]} 23. Bd4 {[%emt 0:01:36]} Qc7 {[%emt 0:01:35]} 24. Qh5 {[%emt 0:16:48]} Bf5 {[%emt 0:02:41]} 25. Qf3 {[%emt 0:01:58]} Nc6 {[%emt 0:01:05]} 26. Bxg7 {[%emt 0:00:17]} Qd7 {[%emt 0:04:21]} 27. Bf6 {[%emt 0:06:48]} Rab8 {[%emt 0:02:24]} 28. g6 {[%emt 0:01:48]} fxg6 {[%emt 0:00:42]} 29. Bc4+ {[%emt 0:01:19]} Be6 {[%emt 0:00:31]} 30. Nd5 {[%emt 0:01:00]} Nb4 {[%emt 0:03:08]} 31. Qh5 {[%emt 0:00:45]} Bxd5 {[%emt 0:01:24]} 32. Rxg6+ {[%emt 0:00:25]} hxg6 {[%emt 0:00:07]} 33. Qh8+ {[%emt 0:00:41]} Kf7 {[%emt 0:00:07]} 34. Qg7+ {[%emt 0:00:09]} Ke6 {[%emt 0:00:09]} 35. Qxg6 {[%emt 0:00:09]} Qf7 {[%emt 0:00:24]} 0-1

[Event "Spring Tour GM Mix B 2022"]
[Site "Cattolica"]
[Date "2022.03.14"]
[Round "8.6"]
[White "Pfreundt, Jakob"]
[Black "Devnani Kush"]
[Result "1-0"]
[ECO "A07"]
[WhiteElo "2392"]
[BlackElo "2041"]
[Annotator "ChessBase"]
[PlyCount "111"]
[EventDate "2022.03.10"]
[EventType "swiss"]
[EventCountry "ITA"]
[SourceTitle "playchess.com"]
[Source "ChessBase"]
[SourceQuality "1"]
[TimeControl "5400+30"]

1. Nf3 {[%emt 0:00:07]} d5 {[%emt 0:02:19]} 2. g3 {[%emt 0:00:15]} c6 {[%emt 0:03:53]} 3. Bg2 {[%emt 0:00:20]} Bf5 {[%emt 0:02:47]} 4. O-O {[%emt 0:00:27]} e6 {[%emt 0:00:17]} 5. d3 {[%emt 0:00:57]} Be7 {[%emt 0:04:32]} 6. c4 {[%emt 0:10:43]} dxc4 {[%emt 0:08:04]} 7. d4 {[%emt 0:00:09]} Nd7 {[%emt 0:07:07]} 8. Nbd2 {[%emt 0:05:16]} Ngf6 {[%emt 0:04:13]} 9. Nxc4 {[%emt 0:02:26]} O-O {[%emt 0:02:24]} 10. Qb3 {[%emt 0:01:36]} Nb6 {[%emt 0:02:34]} 11. Na5 {[%emt 0:00:59]} Rb8 {[%emt 0:08:03]} 12. Bf4 {[%emt 0:05:26]} Bd6 {[%emt 0:00:46]} 13. Bg5 {[%emt 0:06:22]} Be4 {[%emt 0:06:58]} 14. Qe3 {[%emt 0:15:54]} Bd5 {[%emt 0:09:30]} 15. Qd3 {[%emt 0:03:33]} Bxf3 {[%emt 0:05:23]} 16. Bxf3 {[%emt 0:03:26]} h6 {[%emt 0:00:06]} 17. Bd2 {[%emt 0:01:19]} e5 {[%emt 0:08:20]} 18. Rad1 {[%emt 0:01:00]} Qe7 {[%emt 0:03:02]} 19. dxe5 {[%emt 0:00:38]} Bxe5 {[%emt 0:00:25]} 20. b4 {[%emt 0:00:22]} Qe6 {[%emt 0:02:48]} 21. Qb3 {[%emt 0:04:28]} Qxb3 {[%emt 0:01:59]} 22. Nxb3 {[%emt 0:03:16]} Nc4 {[%emt 0:01:10]} 23. Be1 {[%emt 0:03:11]} Bc7 {[%emt 0:02:49]} 24. Nc5 {[%emt 0:04:44]} Ne5 {[%emt 0:03:13]} 25. Bg2 {[%emt 0:00:30]} Rfd8 {[%emt 0:00:50]} 26. Rxd8+ {[%emt 0:01:13]} Bxd8 {[%emt 0:00:04]} 27. Bc3 {[%emt 0:00:37]} Ned7 {[%emt 0:00:38]} 28. Nb3 {[%emt 0:02:00]} Nb6 {[%emt 0:01:50]} 29. e4 {[%emt 0:00:55]} Bc7 {[%emt 0:01:56]} 30. Rd1 {[%emt 0:01:25]} Na4 {[%emt 0:01:23]} 31. Ba1 {[%emt 0:01:55]} Re8 {[%emt 0:01:42]} 32. Bxf6 {[%emt 0:03:58]} gxf6 {[%emt 0:00:01]} 33. Rd7 {[%emt 0:00:11]} Bb6 {[%emt 0:00:44]} 34. Rxb7 {[%emt 0:02:58]} Nc3 {[%emt 0:00:20]} 35. Nc5 {[%emt 0:01:34]} Nxa2 {[%emt 0:03:05]} 36. Bf3 {[%emt 0:00:41]} Bxc5 {[%emt 0:02:06]} 37. bxc5 {[%emt 0:00:03]} Re5 {[%emt 0:00:22]} 38. Bd1 {[%emt 0:14:36]} Rxc5 {[%emt 0:01:14]} 39. Bb3 {[%emt 0:00:19]} Ra5 {[%emt 0:00:32]} 40. Bxf7+ {[%emt 0:01:42]} Kf8 {[%emt 0:00:06]} 41. Bc4 {[%emt 0:02:40]} Nc3 {[%emt 0:00:48]} 42. Rf7+ {[%emt 0:00:14]} Ke8 {[%emt 0:01:07]} 43. Rxf6 {[%emt 0:00:12]} Rc5 {[%emt 0:00:22]} 44. Bd3 {[%emt 0:00:55]} h5 {[%emt 0:00:25]} 45. f4 {[%emt 0:00:48]} a5 {[%emt 0:00:04]} 46. e5 {[%emt 0:00:27]} a4 {[%emt 0:00:12]} 47. Bg6+ {[%emt 0:00:27]} Kd8 {[%emt 0:00:09]} 48. Rf8+ {[%emt 0:00:16]} Kc7 {[%emt 0:00:10]} 49. Ra8 {[%emt 0:02:35]} Kb7 {[%emt 0:00:08]} 50. e6 {[%emt 0:07:00]} Nd5 {[%emt 0:02:55]} 51. Rxa4 {[%emt 0:00:09]} h4 {[%emt 0:00:03]} 52. Rd4 {[%emt 0:07:24]} Nf6 {[%emt 0:01:04]} 53. e7 {[%emt 0:00:34]} hxg3 {[%emt 0:00:18]} 54. hxg3 {[%emt 0:00:13]} Rc3 {[%emt 0:00:04]} 55. Kf2 {[%emt 0:00:48]} c5 {[%emt 0:01:05]} 56. Rd6 {[%emt 0:00:40]} 1-0

[Event "Spring Tour GM Mix B 2022"]
[Site "Cattolica"]
[Date "2022.03.14"]
[Round "8.9"]
[White "Engel, Robert"]
[Black "Knudsen, Simon"]
[Result "0-1"]
[ECO "B09"]
[WhiteElo "2128"]
[BlackElo "2203"]
[Annotator "ChessBase"]
[PlyCount "130"]
[EventDate "2022.03.10"]
[EventType "swiss"]
[EventCountry "ITA"]
[SourceTitle "playchess.com"]
[Source "ChessBase"]
[SourceQuality "1"]
[TimeControl "5400+30"]

1. e4 {[%emt 0:00:02]} g6 {[%emt 0:00:09]} 2. d4 {[%emt 0:00:30]} Bg7 {[%emt 0:00:06]} 3. Nc3 {[%emt 0:00:18]} d6 {[%emt 0:00:46]} 4. f4 {[%emt 0:00:16]} Nf6 {[%emt 0:00:09]} 5. Nf3 {[%emt 0:00:11]} O-O {[%emt 0:00:59]} 6. Bd3 {[%emt 0:00:04]} Nc6 {[%emt 0:00:08]} 7. Be2 {[%emt 0:00:05]} Bg4 {[%emt 0:05:05]} 8. O-O {[%emt 0:03:55]} d5 {[%emt 0:06:40]} 9. e5 {[%emt 0:02:13]} Ne4 {[%emt 0:00:10]} 10. Be3 {[%emt 0:03:04]} Nxc3 {[%emt 0:06:20]} 11. bxc3 {[%emt 0:00:31]} Na5 {[%emt 0:00:10]} 12. h3 {[%emt 0:01:29]} Bxf3 {[%emt 0:01:18]} 13. Rxf3 {[%emt 0:01:32]} e6 {[%emt 0:06:27]} 14. g4 {[%emt 0:03:24]} f5 {[%emt 0:14:22]} 15. exf6 {[%emt 0:03:35]} Qxf6 {[%emt 0:00:09]} 16. Qf1 {[%emt 0:04:02]} c5 {[%emt 0:01:56]} 17. Rb1 {[%emt 0:04:58]} c4 {[%emt 0:00:33]} 18. Rb5 {[%emt 0:07:36]} b6 {[%emt 0:00:16]} 19. Kg2 {[%emt 0:26:48]} Nb7 {[%emt 0:03:40]} 20. Rb1 {[%emt 0:04:16]} Nd6 {[%emt 0:01:44]} 21. Qe1 {[%emt 0:04:59]} Rf7 {[%emt 0:06:33]} 22. Bc1 {[%emt 0:02:04]} Rc8 {[%emt 0:06:53]} 23. h4 {[%emt 0:02:28]} h5 {[%emt 0:01:59]} 24. Rh3 {[%emt 0:00:03]} Bf8 {[%emt 0:01:36]} 25. gxh5 {[%emt 0:01:15]} gxh5 {[%emt 0:00:15]} 26. Bxh5 {[%emt 0:04:24]} Rg7+ {[%emt 0:00:19]} 27. Kh2 {[%emt 0:01:13]} Qf5 {[%emt 0:02:45]} 28. Bf3 {[%emt 0:01:15]} Qxc2+ {[%emt 0:04:17]} 29. Bd2 {[%emt 0:00:07]} Qf5 {[%emt 0:00:07]} 30. Rd1 {[%emt 0:01:04]} Nf7 {[%emt 0:00:34]} 31. Rg3 {[%emt 0:01:19]} Bd6 {[%emt 0:00:48]} 32. Rxg7+ {[%emt 0:00:05]} Kxg7 {[%emt 0:00:06]} 33. Qg3+ {[%emt 0:00:13]} Qg6 {[%emt 0:04:44]} 34. Rg1 {[%emt 0:03:26]} Qxg3+ {[%emt 0:00:15]} 35. Rxg3+ {[%emt 0:00:01]} Kf6 {[%emt 0:01:28]} 36. h5 {[%emt 0:00:46]} Rh8 {[%emt 0:00:44]} 37. Rg6+ {[%emt 0:00:31]} Ke7 {[%emt 0:00:02]} 38. Kh3 {[%emt 0:02:56]} Nh6 {[%emt 0:03:31]} 39. Rg7+ {[%emt 0:00:47]} Kf6 {[%emt 0:00:10]} 40. Rd7 {[%emt 0:01:53]} Bb8 {[%emt 0:01:25]} 41. Bd1 {[%emt 0:03:13]} Nf5 {[%emt 0:00:46]} 42. Bg4 {[%emt 0:01:01]} Nd6 {[%emt 0:02:34]} 43. Be1 {[%emt 0:00:28]} Nf5 {[%emt 0:00:15]} 44. Bd2 {[%emt 0:01:24]} b5 {[%emt 0:04:46]} 45. Bc1 {[%emt 0:03:59]} b4 {[%emt 0:00:39]} 46. cxb4 {[%emt 0:00:49]} c3 {[%emt 0:00:02]} 47. Bxf5 {[%emt 0:01:36]} Rxh5+ {[%emt 0:01:39]} 48. Kg4 {[%emt 0:00:06]} Rh1 {[%emt 0:00:09]} 49. Bxe6 {[%emt 0:02:08]} Kxe6 {[%emt 0:00:09]} 50. Rb7 {[%emt 0:00:11]} Rxc1 {[%emt 0:00:08]} 51. Rxb8 {[%emt 0:00:01]} c2 {[%emt 0:00:07]} 52. f5+ {[%emt 0:00:23]} Kf7 {[%emt 0:00:13]} 53. Rc8 {[%emt 0:00:23]} Rg1+ {[%emt 0:00:06]} 54. Kf4 {[%emt 0:00:04]} c1=Q+ {[%emt 0:00:06]} 55. Rxc1 {[%emt 0:00:03]} Rxc1 {[%emt 0:16:43]} 56. Ke5 {[%emt 0:00:03]} Ra1 {[%emt 0:00:50]} 57. Kxd5 {[%emt 0:00:06]} Rxa2 {[%emt 0:00:09]} 58. Kc6 {[%emt 0:00:24]} Kf6 {[%emt 0:00:06]} 59. d5 {[%emt 0:00:10]} Kxf5 {[%emt 0:00:08]} 60. b5 {[%emt 0:00:13]} Ke5 {[%emt 0:00:06]} 61. d6 {[%emt 0:00:06]} Rc2+ {[%emt 0:00:11]} 62. Kb7 {[%emt 0:00:05]} Kxd6 {[%emt 0:00:07]} 63. Kxa7 {[%emt 0:00:04]} Kc5 {[%emt 0:00:06]} 64. b6 {[%emt 0:00:06]} Ra2+ {[%emt 0:00:06]} 65. Kb7 {[%emt 0:00:05]} Rb2 {[%emt 0:00:04]} 0-1